bitfinex-derivatives/quotes_BNBF0:USTF0_20250316
["timestamp","ask_amount","ask_price","bid_price","bid_amount"]
[1742099027400,0.32794949,609.85,608.62,1.02521078]
[1742099027601,0.32794949,609.85,608.63,1.02521078]
[1742099027801,0.32794949,609.85,608.64,1.02521078]
[1742099028001,0.32794949,609.85,608.65,1.02521078]
[1742099028202,0.32794949,609.85,608.66,1.02521078]
[1742099028398,0.32794949,609.85,608.55,5.49]
[1742099028603,0.32794949,609.85,608.56,2.66526455]
[1742099028802,0.32794949,609.85,608.57,2.66526455]
[1742099029003,0.32794949,609.85,608.58,1.02510175]
[1742099029205,0.32794949,609.85,608.59,1.02510175]
[1742099029504,0.32794949,609.85,608.6,1.02510175]
[1742099029803,0.32794949,609.85,608.61,2.18580856]
[1742099030001,0.32794949,609.85,608.61,1.16073735]
[1742099030597,0.32794949,609.85,608.55,5.49]
[1742099030802,0.32794949,609.85,608.56,1.02504291]
[1742099030996,0.32794949,609.85,608.57,1.02504291]
[1742099031199,0.32794949,609.85,608.58,1.02504291]
[1742099031403,0.32794949,609.85,608.59,1.02504291]
[1742099031703,0.32794949,609.85,608.6,1.02504291]
[1742099031907,0.32794949,609.85,608.55,5.49]
[1742099032106,0.32794949,609.85,608.56,1.02500492]
[1742099032305,0.32794949,609.85,608.57,1.02500492]
[1742099032506,0.32794949,609.85,608.58,1.02500492]
[1742099032806,0.32794949,609.85,608.59,1.02500492]
[1742099033012,0.32794949,609.85,608.6,1.02500492]
[1742099033207,2.47130862,609.84,608.61,1.02500492]
[1742099033405,0.32796025,609.83,608.62,1.02500492]
[1742099033605,0.32796025,609.83,608.63,1.02500492]
[1742099033807,0.32796025,609.83,608.64,1.02500492]
[1742099034000,0.32796025,609.83,608.55,5.49]
[1742099034202,0.32796025,609.83,608.56,2.66486233]
[1742099034507,0.32796025,609.83,608.57,3.82544316]
[1742099034808,0.32796025,609.83,608.58,1.02495091]
[1742099035208,0.32796025,609.83,608.59,1.16057079]
[1742099035509,2.47130862,609.63,608.6,1.02495091]
[1742099036010,2.47130862,609.63,608.61,1.02495091]
[1742099036209,2.47130862,609.63,608.62,1.02495091]
[1742099036509,2.47130862,609.66,608.55,5.49]
[1742099036712,2.47130862,609.66,608.56,1.02500446]
[1742099036913,2.47130862,609.66,608.57,1.02500446]
[1742099037214,2.47130862,609.66,608.58,1.02500446]
[1742099037413,2.47130862,609.66,608.59,1.02500446]
[1742099037713,2.47130862,609.66,608.6,1.02500446]
[1742099037914,2.47130862,609.66,608.61,1.02500446]
[1742099038114,2.47130862,609.72,608.55,5.49]
[1742099038316,2.47130862,609.72,608.56,1.02501163]
[1742099038615,2.47130862,609.72,608.57,1.02501163]
[1742099038818,2.47130862,609.72,608.58,2.18559614]
[1742099039009,2.47130862,609.72,608.59,1.02501163]
[1742099039210,2.47130862,609.72,608.6,1.02501163]
[1742099039516,2.47130862,609.72,608.61,1.02501163]
[1742099039720,2.47130862,609.72,608.62,1.02501163]
[1742099039917,2.47130862,609.72,608.63,1.02499166]
[1742099040217,2.47130862,609.72,608.55,3.817]
[1742099040409,2.47130862,609.72,608.56,1.02500219]
[1742099040616,2.47130862,609.72,608.57,1.02500219]
[1742099040818,2.47130862,609.72,608.58,1.02500219]
[1742099041019,2.47130862,609.72,608.59,1.02500219]
[1742099041221,2.47130862,609.72,608.6,1.02499081]
[1742099041423,2.47130862,609.69,608.58,1.16060852]
[1742099041723,2.47130862,609.69,608.59,1.02502754]
[1742099041916,2.47130862,609.69,608.6,1.02502754]
[1742099042120,2.47130862,609.69,608.59,1.919]
[1742099043123,0.32796025,609.83,608.59,1.919]
[1742099044119,0.32796025,609.83,608.6,1.02502628]
[1742099044423,0.32796025,609.83,608.59,1.919]
[1742099044623,0.32796025,609.83,608.6,1.02503643]
[1742099044819,0.32796025,609.83,608.59,1.919]
[1742099048727,0.32796025,609.83,608.6,1.605]
[1742099057228,0.32796025,609.83,608.61,1.798]
[1742099058725,2.47130862,609.8,608.61,1.798]
[1742099058929,0.32798176,609.79,608.61,1.798]
[1742099060433,2.47130862,609.74,608.61,1.798]
[1742099060733,0.32801403,609.73,608.61,1.798]
[1742099062731,2.47130862,609.71,608.61,1.798]
[1742099063335,0.32803017,609.7,608.61,1.798]
[1742099065737,0.32803017,609.7,608.62,1.825]
[1742099066337,2.47130862,609.69,608.62,1.825]
[1742099066537,0.32804093,609.68,608.62,1.825]
[1742099070439,2.47130862,609.5,608.62,1.825]
[1742099072746,2.47130862,609.5,608.63,1.95]
[1742099072942,2.47130862,609.55,608.63,1.95]
[1742099073444,0.32811628,609.54,608.63,1.95]
[1742099075146,0.32811628,609.54,608.64,1.96]
[1742099078048,0.32811628,609.54,608.65,1.727]
[1742099087553,2.7994249,609.54,608.65,1.727]
[1742099089459,2.47130862,609.52,608.65,1.727]
[1742099089856,0.32813243,609.51,608.65,1.727]
[1742099090056,0.32813243,609.51,608.65,2.992]
[1742099091459,2.47130862,609.41,608.65,2.992]
[1742099091759,0.32819166,609.4,608.65,2.992]
[1742099092962,2.47130862,609.24,608.65,2.992]
[1742099094372,2.47130862,609.2,608.65,2.992]
[1742099096369,0.32819166,609.4,608.65,2.992]
[1742099107677,2.47130862,609.2,608.65,2.992]
[1742099108077,2.47130862,609.2,608.65,1.727]
[1742099109274,2.47130862,609.37,608.65,1.727]
[1742099110573,2.47130862,609.37,608.65,3.722]
[1742099111471,0.32819166,609.4,608.65,3.722]
[1742099112575,0.32819166,609.4,608.65,5.159]
[1742099120999,0.32819166,609.4,608.65,1.86932039]
[1742099121198,0.32819166,609.4,608.63,1.997]
[1742099121199,0.32819166,609.4,608.63,0.14432039]
[1742099121398,0.32819166,609.4,607.66,0.28591029]
[1742099121601,0.32819166,609.4,607.67,0.329126]
[1742099122901,0.32819166,609.4,607.68,1.20202798]
[1742099123101,0.32819166,609.4,607.69,0.32911517]
[1742099123499,0.32819166,609.4,607.7,1.548]
[1742099123695,2.47130862,609.13,607.71,0.32910434]
[1742099125196,2.47130862,609.16,607.71,0.32910434]
[1742099125397,0.32832635,609.15,607.71,0.32910434]
[1742099128205,2.47130862,609.04,607.71,0.32910434]
[1742099128404,0.32839104,609.03,607.71,0.32910434]
[1742099131508,2.47130862,609.02,607.71,0.32910434]
[1742099131909,0.32840722,609.0,607.71,0.32910434]
[1742099137513,0.32840722,609.0,607.7,3.59]
[1742099140615,0.32840722,609.0,607.7,2.042]
[1742099146119,0.28617127,608.99,607.7,2.042]
[1742099146321,0.3284234,608.97,607.7,2.042]
[1742099148822,0.3284234,608.97,607.59,2.033]
[1742099149419,2.47130862,608.84,607.59,2.033]
[1742099149616,0.32850431,608.82,607.59,2.033]
[1742099153726,2.47130862,608.6,607.59,2.033]
[1742099154027,0.32862846,608.59,607.59,2.033]
[1742099176651,2.47130862,608.58,607.59,2.033]
[1742099178250,0.32862846,608.59,607.59,2.033]
[1742099181549,0.32862846,608.59,607.6,1.434]
[1742099189358,0.32862846,608.59,607.61,1.503]
[1742099203876,0.32862846,608.59,607.62,1.293]
[1742099206578,0.32862846,608.59,607.63,1.628]
[1742099214980,0.32862846,608.59,607.64,1.787]
[1742099219689,0.32862846,608.59,607.65,1.996]
[1742099226800,0.32862846,608.59,607.65,3.564]
[1742099228595,2.47130862,608.54,607.65,3.564]
[1742099229696,2.47130862,608.51,607.65,3.564]
[1742099230398,2.47130862,608.51,607.65,5.38]
[1742099231906,0.32862846,608.59,607.65,5.38]
[1742099239213,0.32862846,608.59,607.66,1.02603158]
[1742099239416,0.32862846,608.59,607.67,1.02603158]
[1742099239610,0.32862846,608.59,607.68,1.20822936]
[1742099240112,0.32862846,608.59,607.69,1.20822936]
[1742099240616,0.32862846,608.59,607.65,3.384]
[1742099240910,0.32862846,608.59,607.65,1.816]
[1742099241115,0.32862846,608.59,607.66,1.02578681]
[1742099241315,0.32862846,608.59,607.67,1.02578681]
[1742099242112,0.32862846,608.59,607.68,1.20809262]
[1742099242315,0.32862846,608.59,607.69,1.02578681]
[1742099242515,0.32862846,608.59,607.68,1.20809262]
[1742099242717,0.32862846,608.59,607.7,1.442]
[1742099243720,0.32862846,608.59,607.71,1.02544473]
[1742099243917,0.32862846,608.59,607.71,2.5916966]
[1742099244515,0.32862846,608.59,607.72,1.2076966]
[1742099245019,2.47130862,608.96,607.73,1.02527627]
[1742099245321,2.47130862,608.96,607.74,1.02527627]
[1742099245619,2.47130862,608.98,607.75,1.02527627]
[1742099245820,2.47130862,608.98,607.76,1.02527627]
[1742099246120,2.47130862,608.98,607.77,1.02527627]
[1742099246315,2.47130862,608.98,607.78,1.02527627]
[1742099246516,2.47130862,608.98,607.79,1.02527627]
[1742099246719,2.47130862,608.98,607.77,3.2586966]
[1742099246720,2.47130862,608.98,607.8,1.02527627]
[1742099247022,2.47130862,608.98,607.81,1.02458969]
[1742099247217,2.47130862,608.98,607.82,0.32904478]
[1742099247423,2.47130862,608.98,607.83,1.02407778]
[1742099247616,2.47130862,608.79,607.84,1.02407778]
[1742099247816,2.47130862,608.79,607.82,0.32904478]
[1742099247817,2.47130862,608.79,607.85,1.02407778]
[1742099248124,2.47130862,608.79,607.86,1.02407778]
[1742099248323,2.47130862,608.79,607.87,1.02349655]
[1742099248521,2.47130862,608.79,607.87,1.20598632]
[1742099248923,2.47130862,608.79,607.83,1.20598632]
[1742099249117,2.47130862,608.79,607.84,1.02349488]
[1742099249323,2.47130862,608.79,607.85,1.02349488]
[1742099249618,2.47130862,608.95,607.85,1.02349488]
[1742099249822,2.47130862,608.95,607.86,1.20598632]
[1742099250221,2.47130862,608.95,607.84,0.32903395]
[1742099250424,2.47130862,608.95,607.85,1.02259293]
[1742099250625,2.47130862,608.95,607.84,0.32903395]
[1742099250820,2.47130862,608.95,607.85,1.02259293]
[1742099251018,2.47130862,608.96,607.84,0.32903395]
[1742099251229,2.47130862,608.96,607.85,1.02259293]
[1742099251424,2.47130862,608.96,607.84,0.32903395]
[1742099252131,2.47130862,608.96,607.85,1.02221825]
[1742099252329,2.47130862,608.98,607.86,1.35124138]
[1742099252529,2.47130862,608.98,607.87,1.35123596]
[1742099252729,2.47130862,608.98,607.88,1.35123055]
[1742099252930,2.47130862,608.98,607.89,1.35122514]
[1742099253126,2.47130862,608.98,607.9,1.02221825]
[1742099253327,2.47130862,608.98,607.91,1.35121431]
[1742099253529,2.47130862,608.98,607.92,0.32899065]
[1742099253732,2.79972663,608.98,607.92,0.32899065]
[1742099253932,0.3284234,608.97,607.92,0.32899065]
[1742099255930,0.3284234,608.97,607.77,2.051]
[1742099264232,0.3284234,608.97,607.77,3.631]
[1742099266837,2.47130862,608.73,607.77,3.631]
[1742099268440,2.47130862,608.82,607.77,3.631]
[1742099269834,2.47130862,608.82,607.77,5.489]
[1742099270339,0.3284234,608.97,607.77,5.489]
[1742099270340,2.47130862,608.8,607.77,5.489]
[1742099271741,2.47130862,608.79,607.77,5.489]
[1742099273342,2.47130862,608.83,607.77,5.489]
[1742099276042,0.3284234,608.97,607.77,5.489]
[1742099288555,2.47130862,608.8,607.77,5.489]
[1742099290256,2.47130862,608.75,607.77,5.489]
[1742099292257,2.47130862,608.81,607.77,5.489]
[1742099294361,0.3284234,608.97,607.77,5.489]
[1742099300561,0.3284234,608.97,607.77,6.854]
[1742099313478,2.47130862,608.88,607.77,6.854]
[1742099314975,2.47130862,608.91,607.77,6.854]
[1742099316676,0.3284234,608.97,607.77,6.854]
[1742099364319,2.48724888,608.66,607.77,6.854]
[1742099366228,2.48724888,608.51,607.77,6.854]
[1742099367923,2.48724888,608.49,607.77,6.854]
[1742099369726,2.48724888,608.5,607.77,6.854]
[1742099371435,2.48724888,608.9,607.77,6.854]
[1742099371634,0.32846655,608.89,607.77,6.854]
[1742099375732,2.81571543,608.89,607.77,6.854]
[1742099377334,2.48724888,608.88,607.77,6.854]
[1742099377535,0.32847734,608.87,607.77,6.854]
[1742099382932,2.48724888,608.5,607.77,6.854]
[1742099384541,0.32847734,608.87,607.77,6.854]
[1742099393851,2.48724888,608.81,607.77,6.854]
[1742099394858,2.81572622,608.87,607.77,6.854]
[1742099396153,0.32847734,608.87,607.77,6.854]
[1742099412270,2.48724888,608.77,607.77,6.854]
[1742099414074,2.48724888,608.81,607.77,6.854]
[1742099415675,2.48724888,608.82,607.77,6.854]
[1742099417071,0.32847734,608.87,607.77,6.854]
[1742099419379,2.48724888,608.7,607.77,6.854]
[1742099421184,2.48724888,608.84,607.77,6.854]
[1742099422385,2.48724888,608.82,607.77,6.854]
[1742099424791,0.32847734,608.87,607.77,6.854]
[1742099431593,2.48724888,608.74,607.77,6.854]
[1742099433294,2.48724888,608.52,607.77,6.854]
[1742099436096,2.48724888,608.63,607.77,6.854]
[1742099438298,2.48724888,608.62,607.77,6.854]
[1742099439802,2.48724888,608.69,607.77,6.854]
[1742099441098,2.48724888,608.69,607.78,1.02609913]
[1742099441301,2.48724888,608.82,607.77,6.854]
[1742099441503,2.48724888,608.82,607.51,0.28615362]
[1742099441798,2.48724888,608.82,607.52,3.61331724]
[1742099441996,2.48724888,608.82,607.53,3.61331183]
[1742099442302,2.48724888,608.82,607.54,3.61330641]
[1742099442502,2.48724888,608.82,607.55,3.61330099]
[1742099442702,2.48724888,608.82,607.56,3.28410998]
[1742099442902,2.48724888,608.82,607.57,3.61329015]
[1742099443094,2.48724888,608.82,607.58,3.61328473]
[1742099443302,2.48724888,608.82,607.59,3.61327932]
[1742099443501,2.48724888,608.82,607.6,3.6132739]
[1742099443698,2.48724888,608.82,607.61,3.61326848]
[1742099444004,2.48724888,608.82,607.62,6.712549]
[1742099444205,2.48724888,608.82,607.63,2.99691259]
[1742099444405,2.48724888,608.82,607.64,2.99690717]
[1742099444602,2.48724888,608.79,607.65,2.99690175]
[1742099444806,2.48724888,608.79,607.66,2.99689634]
[1742099445007,2.48724888,608.79,607.67,2.99689092]
[1742099445201,2.48724888,608.79,607.68,1.02606343]
[1742099445616,2.48724888,608.79,607.69,1.19203305]
[1742099445818,2.48724888,608.79,607.7,1.02606343]
[1742099446215,2.48724888,608.79,607.71,1.19203305]
[1742099446411,2.48724888,608.68,607.72,1.02612433]
[1742099446610,2.48724888,608.68,607.73,1.02612433]
[1742099446813,2.48724888,608.68,607.74,1.02612433]
[1742099447010,2.48724888,608.68,607.75,1.02612433]
[1742099447311,2.48724888,608.68,607.76,1.02612433]
[1742099447515,2.48724888,608.68,607.77,1.02612433]
[1742099447815,2.48724888,608.72,607.76,1.1920746]
[1742099448117,2.48724888,608.72,607.77,1.02608082]
[1742099448317,2.48724888,608.72,607.76,1.1920746]
[1742099448516,2.48724888,608.72,607.77,1.026087]
[1742099448714,2.48724888,608.72,607.67,0.329126]
[1742099448912,2.48724888,608.72,607.68,2.66783221]
[1742099449120,2.48724888,608.72,607.69,3.85991731]
[1742099449311,2.48724888,608.72,607.7,1.02608931]
[1742099449515,0.32847734,608.87,607.71,1.02608931]
[1742099449516,2.48724888,608.85,607.71,1.02608931]
[1742099450016,2.48724888,608.85,607.72,1.1920851]
[1742099450214,2.48724888,608.85,607.73,1.02608931]
[1742099450416,2.48724888,608.85,607.74,1.1920851]
[1742099450618,2.48724888,608.85,607.75,1.02608931]
[1742099451118,2.48724888,608.78,607.76,1.1920851]
[1742099451416,2.48724888,608.78,607.77,1.02608931]
[1742099452319,2.48724888,608.78,607.78,1.1920851]
[1742099452614,2.48724888,608.78,607.79,1.02608931]
[1742099453117,2.48724888,608.77,607.79,1.02608931]
[1742099453313,2.48724888,608.77,607.8,1.02608931]
[1742099453519,2.48724888,608.77,607.67,0.329126]
[1742099453820,2.48724888,608.77,607.68,3.28480541]
[1742099454118,2.48724888,608.77,607.69,6.38480873]
[1742099454318,2.48724888,608.77,607.7,2.66831022]
[1742099454514,2.48724888,608.77,607.71,2.66831022]
[1742099454714,2.48724888,608.77,607.72,2.66831022]
[1742099455020,2.48724888,608.78,607.73,3.86060583]
[1742099455221,2.48724888,608.78,607.74,1.02627316]
[1742099455720,2.48724888,608.78,607.75,1.19229561]
[1742099455921,2.48724888,608.78,607.76,1.02627316]
[1742099456320,2.48724888,608.78,607.75,1.19229561]
[1742099456721,2.48724888,608.78,607.67,0.329126]
[1742099456921,2.48724888,608.78,607.68,2.6691143]
[1742099457121,2.48724888,608.78,607.69,1.02658242]
[1742099457322,2.48724888,608.78,607.7,1.02658242]
[1742099457521,0.32847734,608.87,607.71,1.02658242]
[1742099457522,2.48724888,608.72,607.71,1.02658242]
[1742099457722,2.48724888,608.72,607.72,1.02658242]
[1742099457922,2.48724888,608.72,607.73,1.02658242]
[1742099458423,2.48724888,608.72,607.74,1.19266941]
[1742099458623,2.48724888,608.72,607.75,1.02658242]
[1742099459124,2.48724888,608.77,607.75,1.02658242]
[1742099459324,2.48724888,608.77,607.76,1.02658242]
[1742099459519,2.48724888,608.77,607.67,0.329126]
[1742099459723,2.48724888,608.77,607.68,2.66996644]
[1742099459919,2.48724888,608.77,607.69,2.66994762]
[1742099460122,2.48724888,608.77,607.7,1.02690293]
[1742099460322,2.48724888,608.77,607.71,1.02690293]
[1742099460523,2.48724888,608.77,607.7,1.19304142]
[1742099460524,2.48724888,608.77,607.72,1.02690293]
[1742099460823,2.48724888,608.77,607.73,1.02690293]
[1742099461023,2.48724888,608.77,607.74,1.02690293]
[1742099461223,2.48724888,608.77,607.75,1.02690293]
[1742099461423,2.48724888,608.77,607.76,1.02690293]
[1742099461625,2.48724888,608.77,607.77,1.02690293]
[1742099461828,2.48724888,608.77,607.67,0.329126]
[1742099462126,2.48724888,608.75,607.68,2.66996689]
[1742099462320,2.48724888,608.75,607.69,2.66996689]
[1742099462620,2.48724888,608.75,607.7,2.66998324]
[1742099462819,2.48724888,608.75,607.71,1.02691034]
[1742099463325,2.48724888,608.75,607.72,1.1930489]
[1742099463526,2.48724888,608.75,607.73,1.02691034]
[1742099464026,2.48724888,608.75,607.74,1.1930489]
[1742099464227,2.48724888,608.75,607.75,1.02691034]
[1742099464427,2.48724888,608.74,607.75,1.02691034]
[1742099464827,2.48724888,608.74,607.76,1.1930489]
[1742099465724,2.48724888,608.74,607.68,1.1930489]
[1742099465924,2.48724888,608.74,607.69,1.02698864]
[1742099466127,2.48724888,608.74,607.7,1.02698864]
[1742099466330,2.48724888,608.81,607.71,2.22003754]
[1742099466526,2.48724888,608.81,607.72,1.02698864]
[1742099466930,2.48724888,608.81,607.73,1.1930489]
[1742099467130,2.48724888,608.81,607.74,1.02698864]
[1742099467331,2.48724888,608.81,607.75,1.02700255]
[1742099467532,2.48724888,608.81,607.76,1.02700255]
[1742099468427,2.48724888,608.79,607.77,1.02700255]
[1742099468627,2.48724888,608.79,607.78,1.02700255]
[1742099468827,2.48724888,608.79,607.79,1.02700255]
[1742099469030,2.48724888,608.79,607.77,1.19312362]
[1742099469234,2.48724888,608.79,607.78,1.02698154]
[1742099469532,2.48724888,608.79,607.79,1.02698154]
[1742099469736,2.48724888,608.79,607.67,0.329126]
[1742099469929,2.48724888,608.79,607.68,3.28709905]
[1742099470134,2.48724888,608.79,607.69,2.67012756]
[1742099470435,2.48724888,608.79,607.7,5.77223215]
[1742099470636,2.48724888,608.79,607.71,2.67012756]
[1742099470835,2.48724888,608.79,607.72,2.67012756]
[1742099471035,2.48724888,608.74,607.73,1.02697214]
[1742099471335,2.48724888,608.74,607.74,1.02697051]
[1742099471535,2.48724888,608.74,607.75,1.02697051]
[1742099471735,2.48724888,608.74,607.76,1.02697051]
[1742099471934,2.48724888,608.74,607.77,1.02697051]
[1742099472229,2.48724888,608.74,607.78,1.02697051]
[1742099472432,2.48724888,608.74,607.79,1.02696833]
[1742099472630,2.48724888,608.76,607.8,1.02696833]
[1742099472937,2.48724888,608.76,607.81,1.02696833]
[1742099473137,2.48724888,608.76,607.82,1.02696833]
[1742099473330,2.48724888,608.76,607.8,1.19311715]
[1742099473534,2.48724888,608.76,607.81,1.02693993]
[1742099473738,2.48724888,608.76,607.82,1.02693993]
[1742099473938,2.48724888,608.74,607.83,1.02693993]
[1742099474138,2.48724888,608.74,607.67,0.329126]
[1742099474334,2.48724888,608.74,607.68,3.28693962]
[1742099474539,2.48724888,608.74,607.69,3.61605479]
[1742099474734,2.48724888,608.74,607.7,3.28693962]
[1742099475038,2.48724888,608.74,607.71,3.28693962]
[1742099475339,2.48724888,608.64,607.72,3.28688102]
[1742099475539,2.48724888,608.64,607.73,2.670007]
[1742099475837,2.48724888,608.64,607.74,5.77189026]
[1742099476037,2.48724888,608.64,607.75,2.670007]
[1742099476339,2.48724888,608.64,607.76,3.86303902]
[1742099476538,2.48724888,608.64,607.77,1.02692577]
[1742099476840,2.48724888,608.64,607.78,1.02692577]
[1742099477042,2.48724888,608.64,607.79,1.02692577]
[1742099477241,2.48724888,608.64,607.8,1.02692577]
[1742099477444,0.32847734,608.87,607.81,1.02692577]
[1742099477445,2.48724888,608.61,607.81,1.02692577]
[1742099477643,2.48724888,608.61,607.82,1.02692577]
[1742099477838,2.48724888,608.61,607.8,1.284]
[1742099478038,2.48724888,608.61,607.81,1.02686512]
[1742099478241,2.48724888,608.61,607.82,1.02686512]
[1742099478440,2.48724888,608.61,607.8,1.284]
[1742099478641,2.48724888,608.61,607.81,1.02685014]
[1742099478842,2.48724888,608.61,607.82,1.02685014]
[1742099479043,2.48724888,608.62,607.8,1.284]
[1742099479244,2.48724888,608.62,607.81,1.026851]
[1742099479538,2.48724888,608.62,607.82,1.026851]
[1742099479743,2.48724888,608.62,607.8,1.284]
[1742099479945,2.48724888,608.62,607.81,1.02684815]
[1742099480145,2.48724888,608.62,607.82,1.02684815]
[1742099480344,2.48724888,608.62,607.8,1.284]
[1742099480646,2.48724888,608.64,607.81,1.02684876]
[1742099480846,2.48724888,608.64,607.8,1.284]
[1742099482045,2.48724888,608.59,607.81,1.02685084]
[1742099482250,2.48724888,608.59,607.82,1.02685084]
[1742099482451,2.48724888,608.59,607.8,1.284]
[1742099482646,2.48724888,608.59,607.81,1.02685138]
[1742099482849,2.48724888,608.59,607.8,1.284]
[1742099483049,2.48724888,608.59,607.81,1.02684949]
[1742099483355,2.48724888,608.59,607.82,1.02682877]
[1742099483553,2.48724888,608.59,607.8,1.284]
[1742099483746,2.48724888,608.59,607.81,1.02683099]
[1742099483948,2.48724888,608.59,607.82,1.02683099]
[1742099484146,2.48724888,608.59,607.83,1.02681057]
[1742099484346,2.48724888,608.59,607.84,1.02673174]
[1742099484548,2.48724888,608.59,607.85,1.02673174]
[1742099484744,2.48724888,608.59,607.86,1.02673174]
[1742099484951,2.48724888,608.59,607.87,1.02673174]
[1742099485145,2.48724888,608.59,607.88,2.21955008]
[1742099485346,2.48724888,608.59,607.89,1.02673174]
[1742099485549,2.48724888,608.59,607.9,1.02673174]
[1742099485753,2.48724888,608.59,607.9,1.19281834]
[1742099486447,0.32847734,608.87,607.91,2.21922464]
[1742099486653,0.32847734,608.87,607.91,1.19281834]
[1742099487053,0.32847734,608.87,607.92,1.19281834]
[1742099487655,0.32847734,608.87,607.92,1.498]
[1742099493156,0.32847734,608.87,607.92,3.334]
[1742099500466,0.32847734,608.87,607.92,5.024]
[1742099516274,0.32847734,608.87,607.92,7.006]
[1742099548320,2.49155845,608.83,607.92,7.006]
[1742099548618,0.32850431,608.82,607.92,7.006]
[1742099551119,2.49155845,608.8,607.92,7.006]
[1742099551322,0.3285205,608.79,607.92,7.006]
[1742099552322,2.49155845,608.75,607.92,7.006]
[1742099552727,0.32854749,608.74,607.92,7.006]
[1742099554029,2.49155845,608.64,607.92,7.006]
[1742099555533,2.49155845,608.65,607.92,7.006]
[1742099556833,2.49155845,608.63,607.92,7.006]
[1742099557932,2.49155845,608.62,607.92,7.006]
[1742099559335,2.49155845,608.68,607.92,7.006]
[1742099559934,0.32858527,608.67,607.92,7.006]
[1742099578147,2.49155845,608.65,607.92,7.006]
[1742099579442,0.32858527,608.67,607.92,7.006]
[1742099579443,2.49155845,608.62,607.92,7.006]
[1742099580442,2.49155845,608.58,607.92,7.006]
[1742099581443,2.49155845,608.53,607.92,7.006]
[1742099582347,2.49155845,608.36,607.92,7.006]
[1742099582742,2.49155845,608.36,607.26,0.28619245]
[1742099583050,2.49155845,608.36,606.27,1.23152634]
[1742099583243,2.49155845,608.36,607.27,0.28620304]
[1742099583447,2.49155845,608.36,606.37,0.32983162]
[1742099583650,2.49155845,608.36,606.38,3.27551869]
[1742099583849,0.32858527,608.67,606.39,3.57793409]
[1742099584043,0.32858527,608.67,606.5,0.32976092]
[1742099584245,0.32858527,608.67,606.51,6.66919229]
[1742099584452,0.32858527,608.67,606.61,0.32970112]
[1742099584650,0.32858527,608.67,606.62,3.57793409]
[1742099584945,0.32858527,608.67,606.72,0.32964135]
[1742099585148,0.32858527,608.67,606.73,3.57874446]
[1742099585351,0.32858527,608.67,606.75,0.32962505]
[1742099585644,0.32858527,608.67,606.76,3.57874446]
[1742099585846,0.32858527,608.67,606.78,0.32960875]
[1742099586047,0.32858527,608.67,606.79,3.57874446]
[1742099586248,0.32858527,608.67,606.8,3.57874446]
[1742099586450,0.32858527,608.67,606.81,3.57874446]
[1742099586651,0.32858527,608.67,606.82,3.57874446]
[1742099586950,0.32858527,608.67,606.84,0.32957616]
[1742099587146,0.32858527,608.67,606.85,3.58030235]
[1742099587347,0.32858527,608.67,606.87,0.32955987]
[1742099587545,0.32858527,608.67,606.88,3.27788695]
[1742099587749,0.32858527,608.67,606.9,0.32954358]
[1742099587950,0.32858527,608.67,606.91,3.58032792]
[1742099588250,0.32858527,608.67,606.93,0.32952729]
[1742099588450,0.32858527,608.67,606.94,3.27788695]
[1742099588649,0.32858527,608.67,606.96,0.329511]
[1742099588848,0.32858527,608.67,606.97,3.27788695]
[1742099589050,0.32858527,608.67,606.99,0.32949471]
[1742099589345,0.32858527,608.67,607.0,3.27863166]
[1742099589549,0.32858527,608.67,607.02,0.32947843]
[1742099589746,0.32858527,608.67,607.03,3.27863166]
[1742099589948,0.32858527,608.67,607.05,0.32946215]
[1742099590146,0.32858527,608.67,607.06,3.58107263]
[1742099590352,0.32858527,608.67,607.08,0.32944587]
[1742099590547,0.32858527,608.67,607.09,3.58107263]
[1742099590748,0.32858527,608.67,607.11,0.32942959]
[1742099591050,0.32858527,608.67,607.12,5.18364269]
[1742099591351,0.32858527,608.67,607.13,3.61074869]
[1742099591651,0.32858527,608.67,607.14,6.70200146]
[1742099591847,0.32858527,608.67,607.15,3.61073783]
[1742099592050,0.32858527,608.67,607.16,6.70199061]
[1742099592247,0.32858527,608.67,607.17,3.61072698]
[1742099592446,0.32858527,608.67,607.18,3.61072156]
[1742099592649,0.32858527,608.67,607.19,3.61071613]
[1742099592853,0.32858527,608.67,607.2,3.61071071]
[1742099593050,0.32858527,608.67,607.21,0.61575413]
[1742099593251,0.32858527,608.67,607.22,2.66709816]
[1742099593452,0.32858527,608.67,607.23,3.28285229]
[1742099593749,0.32858527,608.67,607.24,3.28285229]
[1742099593948,0.32858527,608.67,607.25,6.37411049]
[1742099594154,0.32858527,608.67,607.26,2.66709816]
[1742099594352,0.32858527,608.67,607.27,2.66709816]
[1742099594549,0.32858527,608.67,607.28,2.66709816]
[1742099594753,0.32858527,608.67,607.29,2.66709816]
[1742099594950,0.32858527,608.67,607.3,2.66732833]